bitfinex/quotes_BTCUSD_20230113
["timestamp","ask_amount","ask_price","bid_price","bid_amount"]
[1673635926655,1.154363,19372.0,19371.0,0.00012]
[1673635926904,1.154363,19372.0,19371.0,6e-05]
[1673635927157,1.154363,19372.0,19370.0,0.085]
[1673635927440,0.472455,19371.0,19370.0,0.085]
[1673635927681,1.504925,19371.0,19366.0,0.57589352]
[1673635927927,0.23225194,19370.0,19365.0,0.51984672]
[1673635928171,0.53465994,19369.0,19365.0,1.68794836]
[1673635928423,0.21030494,19368.0,19365.0,1.68794836]
[1673635928685,0.85444953,19370.0,19365.0,0.00347372]
[1673635928686,0.21030494,19367.0,19365.0,0.00347372]
[1673635928928,0.324355,19366.0,19365.0,0.00347372]
[1673635929174,1.05102794,19366.0,19365.0,0.08147372]
[1673635929417,1.457091,19366.0,19365.0,0.00347372]
[1673635929661,1.457091,19366.0,19365.0,0.08147372]
[1673635929906,0.940723,19366.0,19365.0,0.08147372]
[1673635930160,0.01,19368.0,19365.0,0.71742309]
[1673635930423,0.01,19368.0,19365.0,0.08147372]
[1673635930671,0.01,19368.0,19365.0,0.00347372]
[1673635930672,0.21030494,19367.0,19365.0,0.00347372]
[1673635930917,0.459575,19366.0,19365.0,0.08147372]
[1673635931430,0.449575,19366.0,19365.0,0.00347372]
[1673635931671,0.449575,19366.0,19365.0,0.00397882]
[1673635931919,0.22807022,19367.0,19365.0,0.00397882]
[1673635932173,0.01,19366.0,19365.0,0.08177372]
[1673635932427,0.13522,19366.0,19365.0,0.08177372]
[1673635932669,0.651588,19366.0,19365.0,0.08177372]
[1673635932921,0.975943,19366.0,19365.0,0.08177372]
[1673635933209,1.07428143,19366.0,19365.0,0.08177372]
[1673635933456,0.23664437,19366.0,19365.0,0.00377372]
[1673635933703,0.23664437,19366.0,19365.0,0.08177372]
[1673635933953,0.23664437,19366.0,19365.0,0.00377372]
[1673635934197,0.24664437,19366.0,19365.0,0.08177372]
[1673635935205,0.91023738,19366.0,19365.0,0.08177372]
[1673635935467,1.39175544,19366.0,19365.0,0.08177372]
[1673635935948,1.79175544,19366.0,19365.0,0.08177372]
[1673635936194,1.49175544,19366.0,19365.0,0.08177372]
[1673635936959,1.767091,19366.0,19365.0,0.08177372]
[1673635937204,1.767091,19366.0,19365.0,0.08877372]
[1673635937205,1.582191,19366.0,19365.0,0.08877372]
[1673635937452,1.63497656,19366.0,19365.0,0.08877372]
[1673635938208,0.60224056,19366.0,19365.0,0.08877372]
[1673635938455,0.60224056,19366.0,19365.0,0.60516872]
[1673635938456,0.27788556,19366.0,19365.0,0.60516872]
[1673635938703,0.077,19366.0,19365.0,0.60516872]
[1673635938958,0.077,19366.0,19365.0,1.52066221]
[1673635939199,0.077,19366.0,19365.0,1.52109966]
[1673635939447,0.077,19366.0,19365.0,1.31565566]
[1673635939704,0.077,19366.0,19365.0,1.83205066]
[1673635939948,0.077,19366.0,19365.0,2.03749466]
[1673635940189,0.077,19366.0,19365.0,2.56372736]
[1673635940439,0.077,19366.0,19365.0,2.57222736]
[1673635941174,0.06215875,19366.0,19365.0,2.57222736]
[1673635942474,0.06215875,19366.0,19365.0,3.35110372]
[1673635942727,0.23595525,19372.0,19365.0,4.42353648]
[1673635942973,0.22060886,19371.0,19366.0,1.85864237]
[1673635943216,0.21403842,19369.0,19367.0,0.6262327]
[1673635943464,0.21403842,19369.0,19368.0,0.73173362]
[1673635943709,0.20814257,19370.0,19368.0,1.23813092]
[1673635943951,0.20814257,19370.0,19369.0,0.1]
[1673635944197,0.20814257,19370.0,19369.0,1.337967]
[1673635944698,0.20814257,19370.0,19369.0,1.33669113]
[1673635944945,0.204,19373.0,19369.0,1.33669113]
[1673635945190,0.19164104,19371.0,19369.0,1.13130013]
[1673635945429,0.19164104,19371.0,19370.0,0.305374]
[1673635945713,1.573517,19376.0,19370.0,1.337898]
[1673635945957,0.2336822,19373.0,19370.0,1.69103408]
[1673635946200,0.2366822,19373.0,19371.0,0.305358]
[1673635946453,0.2336822,19373.0,19372.0,0.516208]
[1673635946701,0.2336822,19373.0,19372.0,0.721558]
[1673635946944,0.2336822,19373.0,19372.0,0.516208]
[1673635947195,0.2366822,19373.0,19372.0,0.516208]
[1673635947439,0.2336822,19373.0,19372.0,0.5163428]
[1673635947694,0.2356822,19373.0,19372.0,0.6323428]
[1673635947936,0.2356822,19373.0,19372.0,0.7323428]
[1673635948432,0.2356822,19373.0,19372.0,2.1017611]
[1673635948433,0.002,19373.0,19372.0,2.1017611]
[1673635950718,0.002,19373.0,19372.0,2.6279938]
[1673635950949,0.002,19373.0,19372.0,2.7773938]
[1673635952229,0.002,19373.0,19372.0,2.5279938]
[1673635952478,0.213224,19373.0,19372.0,1.3538988]
[1673635952724,0.213224,19373.0,19372.0,1.148416]
[1673635953243,0.213224,19373.0,19372.0,0.632208]
[1673635953506,0.213224,19373.0,19372.0,0.116]
[1673635953750,0.12722,19373.0,19372.0,0.116]
[1673635953994,0.451575,19373.0,19372.0,0.116]
[1673635954241,1.483939,19373.0,19372.0,0.116]
[1673635954974,1.583939,19373.0,19372.0,0.116]
[1673635956305,1.583639,19373.0,19372.0,0.116]
[1673635957295,2.099821,19373.0,19372.0,0.116]
[1673635959037,1.999821,19373.0,19372.0,0.1157]
[1673635959798,1.19334672,19373.0,19372.0,0.11576617]
[1673635960056,0.22758972,19373.0,19372.0,0.11576617]
[1673635961300,0.24758972,19373.0,19372.0,0.11576617]
[1673635961819,0.39758972,19373.0,19372.0,0.1157]
[1673635962600,0.687882,19373.0,19372.0,0.1157]
[1673635962874,1.528419,19373.0,19372.0,0.1157]
[1673635963596,1.74361851,19373.0,19372.0,0.1157]
[1673635964083,1.528419,19373.0,19372.0,0.1157]
[1673635964327,1.71428089,19373.0,19372.0,0.1157]
[1673635964578,1.528419,19373.0,19372.0,0.1157]
[1673635966077,1.72980454,19373.0,19372.0,0.1157]
[1673635966321,0.37308554,19373.0,19372.0,0.1157]
[1673635967064,0.1717,19373.0,19372.0,1.79713168]
[1673635967310,0.1717,19373.0,19372.0,2.15666691]
[1673635967829,0.17164,19373.0,19372.0,2.15666691]
[1673635968092,0.17164,19373.0,19372.0,2.38463653]
[1673635968332,0.17164,19373.0,19372.0,2.15666691]
[1673635968837,0.17164,19373.0,19372.0,2.38463653]
[1673635969577,0.17164,19373.0,19372.0,2.23265678]
[1673635970089,0.17164,19373.0,19372.0,3.05282341]
[1673635970340,0.17164,19373.0,19372.0,3.1128313]
[1673635970588,0.02164,19373.0,19372.0,3.04164953]
[1673635970830,0.02164,19373.0,19372.0,3.56788223]
[1673635971075,0.01693963,19373.0,19372.0,3.62312462]
[1673635971579,0.01524567,19373.0,19372.0,3.59953268]
[1673635971820,0.01524567,19373.0,19372.0,4.02402645]
[1673635972070,0.01524567,19373.0,19372.0,3.56688656]
[1673635972565,0.01524567,19373.0,19372.0,3.70995068]
[1673635972816,0.01524567,19373.0,19372.0,4.16713491]
[1673635973524,0.01524567,19373.0,19372.0,3.59955252]
[1673635973735,0.01524567,19373.0,19372.0,3.75644406]
[1673635973981,0.01524567,19373.0,19372.0,3.75767814]
[1673635974275,0.01524567,19373.0,19372.0,3.9007866]
[1673635974531,0.01524567,19373.0,19372.0,3.75767814]
[1673635974760,0.01524567,19373.0,19372.0,4.00466847]
[1673635975026,0.01524567,19373.0,19372.0,3.84777693]
[1673635975271,0.01524567,19373.0,19372.0,3.70466847]
[1673635975508,0.01524567,19373.0,19372.0,3.99537916]
[1673635975759,0.01524567,19373.0,19372.0,3.87107693]
[1673635975990,0.01524567,19373.0,19372.0,4.29537916]
[1673635976226,0.01524567,19373.0,19372.0,4.27744308]
[1673635976504,0.01524567,19373.0,19372.0,4.5474457]
[1673635976744,0.01524567,19373.0,19372.0,3.23965844]
[1673635977481,0.01524567,19373.0,19372.0,3.23115844]
[1673635977729,0.01524567,19373.0,19372.0,2.70271826]
[1673635977938,0.01524567,19373.0,19372.0,2.55401826]
[1673635978439,0.01524567,19373.0,19372.0,3.01239223]
[1673635978647,0.01524567,19373.0,19372.0,2.55401826]
[1673635979165,0.01524567,19373.0,19372.0,1.93278851]
[1673635979403,0.01524567,19373.0,19372.0,1.89766232]
[1673635979404,0.38157216,19373.0,19372.0,1.89766232]
[1673635979642,0.38157216,19373.0,19372.0,0.71224595]
[1673635980141,0.48157216,19373.0,19372.0,0.55930376]
[1673635980928,0.38157216,19373.0,19372.0,0.42030376]
[1673635981426,0.38157216,19373.0,19372.0,0.38269473]
[1673635981680,0.38257216,19373.0,19372.0,0.48469473]
[1673635981920,0.38257216,19373.0,19372.0,0.52230376]
[1673635982416,0.25735216,19373.0,19372.0,0.67524595]
[1673635982657,0.25735216,19373.0,19372.0,0.44568096]
[1673635982904,0.25735216,19373.0,19372.0,0.82824632]
[1673635983163,0.001,19373.0,19372.0,1.87283406]
[1673635983416,0.71732274,19375.0,19372.0,1.21686257]
[1673635983417,0.19109348,19374.0,19372.0,1.21686257]
[1673635983690,0.19109348,19374.0,19373.0,0.38279098]
[1673635983944,0.19109348,19374.0,19373.0,1.10430021]
[1673635984198,0.19109348,19374.0,19373.0,0.89896421]
[1673635984452,0.5339,19375.0,19373.0,1.20517027]
[1673635984716,0.26676795,19374.0,19373.0,1.21317027]
[1673635984967,0.26676795,19374.0,19373.0,0.90696421]
[1673635985721,0.26676795,19374.0,19373.0,1.21318455]
[1673635987007,0.26676795,19374.0,19373.0,1.21328442]
[1673635987250,0.26676795,19374.0,19373.0,0.83040234]
[1673635987494,0.26676795,19374.0,19373.0,0.69700255]
[1673635988021,0.26676795,19374.0,19373.0,0.54385594]
[1673635988260,0.26676795,19374.0,19373.0,0.5438638]
[1673635988503,0.096,19374.0,19373.0,0.39075222]
[1673635988749,1.31885504,19374.0,19373.0,0.39075222]
[1673635988970,2.15936504,19374.0,19373.0,0.16110876]
[1673635989245,0.610672,19374.0,19373.0,0.39075222]
[1673635989488,0.610672,19374.0,19373.0,0.5438638]
[1673635989489,0.286317,19374.0,19373.0,0.5438638]
[1673635989979,0.286317,19374.0,19373.0,0.54371506]
[1673635990481,0.096,19374.0,19373.0,0.23749472]
[1673635990739,1.34088802,19374.0,19373.0,0.39060384]
[1673635990980,0.30834908,19374.0,19373.0,0.39060384]
[1673635991471,0.82450408,19374.0,19373.0,0.39060256]
[1673635991732,1.85703969,19374.0,19373.0,0.39060256]
[1673635991975,2.1813963,19374.0,19373.0,0.39060256]
[1673635992501,2.6975513,19374.0,19373.0,0.39060256]
[1673635993186,2.6975513,19374.0,19373.0,0.1609591]
[1673635993471,2.86996275,19374.0,19373.0,0.1609591]
[1673635993720,2.69309122,19374.0,19373.0,0.39060256]
[1673635994181,0.303889,19374.0,19373.0,0.54371506]
[1673635994686,0.303889,19374.0,19373.0,0.69685381]
[1673635995416,0.303889,19374.0,19373.0,1.21303581]
[1673635995672,0.303889,19374.0,19373.0,0.90681547]
[1673635996181,0.303889,19374.0,19373.0,1.21297356]
[1673635997644,0.303889,19374.0,19373.0,1.42299747]
[1673635998367,0.303889,19374.0,19373.0,1.46067993]
[1673635998641,0.303889,19374.0,19373.0,1.46064751]
[1673635999129,0.096,19374.0,19373.0,0.27522693]
[1673635999360,0.096,19374.0,19373.0,0.16098955]
[1673635999361,2.05284169,19374.0,19373.0,0.16098955]
[1673635999619,2.56899669,19374.0,19373.0,0.00785126]
[1673635999862,3.29545663,19374.0,19373.0,0.00785126]
[1673636000115,3.38515169,19374.0,19373.0,0.00785126]
[1673636000361,0.1,19373.0,19371.0,0.15313829]
[1673636000607,0.1,19373.0,19369.0,0.3830215]
[1673636000608,2.60312379,19372.0,19369.0,0.3830215]
[1673636000849,2.60312379,19372.0,19369.0,0.15332829]
[1673636000850,0.1494,19370.0,19369.0,0.15332829]
[1673636001111,2.96299073,19370.0,19369.0,0.15332829]
[1673636001364,2.75268579,19370.0,19369.0,0.15332829]
[1673636001619,2.75268579,19370.0,19369.0,0.00019]
[1673636002141,2.75268579,19370.0,19368.0,0.3828315]
[1673636002385,1.60570779,19369.0,19368.0,0.15313829]
[1673636002617,2.63828379,19369.0,19368.0,0.15313829]
[1673636002876,0.1,19368.0,19367.0,0.3828315]
[1673636003117,1.154577,19368.0,19367.0,0.3828315]
[1673636003362,1.13263,19368.0,19367.0,0.3828315]
[1673636003603,1.03263,19368.0,19367.0,0.15313829]
[1673636003855,1.03263,19368.0,19367.0,0.22969321]
[1673636004095,1.371985,19368.0,19367.0,0.38274423]
[1673636004343,1.04763,19368.0,19367.0,0.38274423]
[1673636004587,1.25884347,19368.0,19367.0,0.38274423]
[1673636004831,1.58319847,19368.0,19367.0,0.15305102]
[1673636005094,1.371985,19368.0,19367.0,0.15305102]
[1673636005337,1.471985,19368.0,19366.0,0.38739717]
[1673636005590,0.147167,19367.0,19366.0,0.15770396]
[1673636005845,0.663509,19367.0,19366.0,0.15770396]
[1673636006092,0.87731588,19367.0,19366.0,0.15761727]
[1673636006344,0.965917,19367.0,19366.0,0.38731048]
[1673636006590,1.157904,19367.0,19366.0,0.15761727]
[1673636006846,1.69338496,19367.0,19366.0,0.15761727]
[1673636007106,1.73064706,19367.0,19366.0,0.38731048]
[1673636007365,1.496259,19367.0,19366.0,0.15761727]
[1673636007616,1.496259,19367.0,19366.0,0.00456625]
[1673636007866,1.596259,19367.0,19366.0,0.00456625]
[1673636008366,2.03671354,19367.0,19366.0,0.00456625]
[1673636008621,1.8264086,19367.0,19366.0,0.00456625]
[1673636009114,2.1264086,19367.0,19366.0,0.00456625]
[1673636009376,2.85942695,19367.0,19366.0,0.00456625]
[1673636009626,1.8124086,19367.0,19366.0,0.00456625]
[1673636009875,2.5310086,19367.0,19366.0,0.00456625]
[1673636010113,2.5150086,19367.0,19366.0,0.00456625]
[1673636010359,2.6500086,19367.0,19366.0,0.00456625]
[1673636010603,2.936201,19367.0,19366.0,0.00456625]
[1673636010855,2.157881,19367.0,19366.0,0.00456625]
[1673636011123,0.64374939,19367.0,19366.0,0.00456625]
[1673636011367,0.31939439,19367.0,19366.0,0.00456625]
[1673636011872,0.135,19367.0,19366.0,0.00456625]
[1673636012126,0.975697,19367.0,19366.0,0.00456625]
[1673636012868,0.86694455,19367.0,19366.0,0.00456625]
[1673636013609,0.83275467,19367.0,19366.0,0.00456625]
[1673636014133,0.651342,19367.0,19366.0,0.00456625]
[1673636014376,1.125197,19367.0,19366.0,0.00456625]
[1673636014868,0.9901146,19367.0,19366.0,0.00456625]
[1673636015390,0.4737726,19367.0,19366.0,0.00456625]
[1673636015640,0.4737726,19367.0,19366.0,1.31487327]
[1673636015641,0.3242726,19367.0,19366.0,1.31487327]
[1673636015889,0.3242726,19367.0,19366.0,1.52030427]
[1673636016128,0.3242726,19367.0,19366.0,1.74999748]
[1673636016640,0.5531,19370.0,19366.0,1.84999748]
[1673636016912,0.015,19367.0,19366.0,1.54456648]
[1673636017158,0.015,19367.0,19366.0,1.52030027]
[1673636017661,0.2066576,19367.0,19366.0,1.39578027]
[1673636017911,0.2066576,19367.0,19366.0,0.00456625]
[1673636018409,0.2216576,19367.0,19366.0,0.00456625]
[1673636022492,0.7379996,19367.0,19366.0,0.00456625]
[1673636023707,0.631342,19367.0,19366.0,0.00456625]
[1673636024193,1.147684,19367.0,19366.0,0.00456625]
[1673636024694,1.34975343,19367.0,19366.0,0.00456625]
[1673636024945,1.147684,19367.0,19366.0,0.00456625]
[1673636025176,1.35950788,19367.0,19366.0,0.00456625]
[1673636025421,1.147684,19367.0,19366.0,0.00456625]
[1673636025916,1.6484414,19367.0,19366.0,0.00456625]
[1673636026163,1.472039,19367.0,19366.0,0.00456625]
[1673636026422,1.147684,19367.0,19366.0,0.00456625]
[1673636026927,1.560939,19367.0,19366.0,0.00456625]
[1673636028422,2.165781,19367.0,19366.0,0.00456625]
[1673636028670,2.29392165,19367.0,19366.0,0.00456625]
[1673636028893,2.20542165,19367.0,19366.0,0.00456625]
[1673636029143,1.88106665,19367.0,19366.0,0.00456625]
[1673636029398,2.10547881,19367.0,19366.0,0.00456625]
[1673636029652,2.49883381,19367.0,19366.0,0.00656625]
[1673636029914,0.21704065,19367.0,19366.0,0.12908625]
[1673636030163,0.21704065,19367.0,19366.0,0.01756625]
[1673636030164,0.22904065,19367.0,19366.0,0.01756625]
[1673636030423,0.012,19367.0,19366.0,0.34751725]
[1673636030667,0.012,19367.0,19366.0,1.20335327]
[1673636030918,0.012,19367.0,19366.0,1.40878427]
[1673636031415,0.17103344,19367.0,19366.0,1.40878427]
[1673636031935,0.17103344,19367.0,19366.0,0.01756625]
[1673636032703,0.68737544,19367.0,19366.0,0.01756625]
[1673636032967,0.528342,19367.0,19366.0,0.01756625]
[1673636033198,3.30726566,19367.0,19366.0,0.01756625]
[1673636033685,3.39536566,19367.0,19366.0,0.01756625]
[1673636038317,3.29557503,19367.0,19366.0,0.01756625]
[1673636038570,3.29557503,19367.0,19366.0,0.01940605]
[1673636038817,3.11857503,19367.0,19366.0,0.01756625]
[1673636039067,2.60223303,19367.0,19366.0,0.01756625]
[1673636039565,2.60223303,19367.0,19366.0,0.17061727]
[1673636040059,2.40202366,19367.0,19366.0,0.17061727]
[1673636040302,2.40202366,19367.0,19366.0,0.01756625]
[1673636040803,2.62697321,19367.0,19366.0,0.01756625]
[1673636041052,2.40202366,19367.0,19366.0,0.01747115]
[1673636042539,3.60910013,19367.0,19366.0,0.01747115]
[1673636044291,3.69780013,19367.0,19366.0,0.01747115]
[1673636046299,3.39596566,19367.0,19366.0,0.01747115]
[1673636046796,3.33746566,19367.0,19366.0,0.01747115]
[1673636047770,3.6451706,19367.0,19366.0,0.01747115]
[1673636048015,3.48714573,19367.0,19366.0,0.01747115]
[1673636048267,3.64197431,19367.0,19366.0,0.00066038]
[1673636048524,4.65483344,19367.0,19366.0,0.00066038]
[1673636048774,7.117658,19367.0,19365.0,0.00347372]
[1673636049024,3.95894177,19366.0,19365.0,0.00347372]
[1673636049302,6.0045369,19366.0,19365.0,0.00347372]
[1673636049546,6.05501878,19366.0,19365.0,0.00347372]
[1673636049797,7.21993424,19366.0,19364.0,0.00397413]
[1673636050044,4.57498821,19365.0,19364.0,0.00397413]
[1673636050300,4.21417084,19365.0,19364.0,0.00397413]
[1673636050551,2.87582966,19365.0,19364.0,0.00397413]
[1673636051047,4.42570296,19365.0,19364.0,0.00497413]
[1673636051295,2.87582966,19365.0,19364.0,0.00497413]
[1673636051784,5.6230271,19365.0,19361.0,0.00453688]
[1673636052029,0.38635655,19363.0,19361.0,0.00453688]
[1673636052309,4.77019344,19362.0,19361.0,0.00453688]
[1673636052565,4.77019344,19362.0,19354.0,0.15725605]
[1673636052566,6.11291115,19362.0,19354.0,0.15725605]
[1673636052822,0.0889,19355.0,19354.0,0.00420503]
[1673636053073,0.55235994,19355.0,19354.0,0.00420503]
[1673636053322,0.55235994,19355.0,19354.0,0.00439503]
[1673636053323,2.10234594,19355.0,19354.0,0.00439503]
[1673636053581,2.47354594,19355.0,19354.0,0.00439503]
[1673636053889,1.963241,19355.0,19354.0,0.55932347]
[1673636054130,0.841017,19355.0,19354.0,0.55932347]
[1673636054374,0.841017,19355.0,19354.0,0.00439503]
[1673636054375,0.72801505,19355.0,19354.0,0.00439503]
[1673636054634,1.56903205,19355.0,19354.0,0.00439503]
[1673636054874,1.39489115,19355.0,19354.0,0.00439503]
[1673636055128,1.43848621,19355.0,19354.0,0.00439503]
[1673636055630,2.47217252,19355.0,19354.0,0.00420503]
[1673636055912,1.50248621,19355.0,19354.0,0.00420503]
[1673636056373,1.69938621,19355.0,19354.0,0.00420503]
[1673636056863,2.73313432,19355.0,19354.0,0.00420503]
[1673636057117,1.69938621,19355.0,19354.0,0.00420503]
[1673636057363,1.490817,19355.0,19354.0,0.00420503]
[1673636058355,1.490817,19355.0,19350.0,0.00282388]
[1673636058356,4.59669785,19355.0,19350.0,0.00282388]
[1673636058602,3.08865266,19354.0,19350.0,0.00282388]
[1673636058850,2.7265522,19353.0,19350.0,0.00263388]
[1673636059104,0.330447,19352.0,19350.0,0.00263388]
[1673636059366,1.874662,19351.0,19350.0,0.00263388]
[1673636059610,2.274662,19351.0,19350.0,0.00263388]
[1673636060101,2.283162,19351.0,19350.0,0.00263388]
[1673636060362,2.5731582,19351.0,19350.0,0.00263388]
[1673636061657,4.66085398,19351.0,19350.0,0.00263388]
[1673636061899,4.71313405,19351.0,19350.0,0.00263388]
[1673636062233,0.6454,19350.0,19348.0,0.00069774]
[1673636062412,0.8481797,19349.0,19348.0,0.00069774]
[1673636062666,3.08106921,19349.0,19348.0,0.00069774]
[1673636063437,3.62646921,19349.0,19348.0,0.00069774]
[1673636063683,3.62631446,19349.0,19348.0,0.00069774]
[1673636063948,4.08537725,19349.0,19348.0,0.00069774]
[1673636064188,4.62788058,19349.0,19347.0,4.8e-07]
[1673636064449,4.62788058,19349.0,19346.0,0.00417044]
[1673636064450,0.67242035,19347.0,19346.0,0.00417044]
[1673636064712,3.83394528,19347.0,19346.0,4.4e-07]
[1673636064954,3.88622535,19347.0,19344.0,0.0057429]
[1673636065206,0.1,19345.0,19344.0,0.0057429]
[1673636065464,0.308247,19345.0,19344.0,0.0057429]
[1673636065698,2.159034,19345.0,19344.0,0.0057429]
[1673636065944,2.4809247,19345.0,19344.0,0.0057429]
[1673636066193,3.54020765,19345.0,19344.0,2.9e-06]
[1673636066444,3.54020765,19345.0,19342.0,0.00383588]
[1673636066445,4.34408765,19345.0,19342.0,0.00383588]
[1673636066697,1.5243877,19344.0,19342.0,0.00383588]
[1673636066959,4.05247152,19344.0,19342.0,0.00383588]
[1673636067277,4.99787152,19344.0,19343.0,8.8e-07]
[1673636067462,4.99787152,19344.0,19342.0,0.00383588]
[1673636067463,4.60490934,19344.0,19342.0,0.00383588]
[1673636067734,4.60490934,19344.0,19339.0,0.00501758]
[1673636067735,1.4588797,19343.0,19339.0,0.00501758]
[1673636067995,0.1,19341.0,19339.0,0.00501758]
[1673636068252,2.821399,19340.0,19339.0,0.00501758]
[1673636068572,3.15572881,19340.0,19339.0,0.00501758]
[1673636068821,3.129899,19340.0,19339.0,0.00501758]
[1673636069323,3.45565904,19340.0,19339.0,5.8e-07]
[1673636069569,3.12982923,19340.0,19339.0,5.8e-07]
[1673636070088,3.12982923,19340.0,19333.0,0.98081292]
[1673636070089,0.6454,19339.0,19333.0,0.98081292]
[1673636070357,0.0889,19335.0,19333.0,0.98081292]
[1673636070609,2.30114394,19334.0,19333.0,0.98081292]
[1673636070854,2.60114394,19334.0,19333.0,0.98081292]
[1673636071110,2.090839,19334.0,19333.0,0.98780743]
[1673636071373,1.573616,19334.0,19333.0,1.60610049]
[1673636071637,1.034446,19334.0,19333.0,1.69259338]
[1673636071872,1.034446,19334.0,19333.0,1.67670743]
[1673636071873,0.133,19334.0,19333.0,1.67670743]
[1673636072164,0.517126,19338.0,19334.0,0.1]
[1673636072463,0.69486298,19338.0,19337.0,0.0889]
[1673636072715,0.17773698,19338.0,19337.0,0.0889]
[1673636072988,0.517101,19339.0,19337.0,0.0889]
[1673636073238,0.68025893,19340.0,19338.0,0.1773]
[1673636073483,0.68025893,19340.0,19339.0,0.0889]
[1673636073733,0.517065,19340.0,19339.0,0.0889]
[1673636073980,0.70557046,19340.0,19339.0,0.0889]
[1673636074234,1.06477487,19340.0,19339.0,0.0889]
[1673636074477,0.74041987,19340.0,19339.0,0.0889]
[1673636074749,0.74041987,19340.0,19339.0,0.2119]
[1673636074750,1.06977487,19340.0,19339.0,0.2119]
[1673636075107,1.039128,19340.0,19339.0,0.123]
[1673636075286,1.363483,19340.0,19339.0,0.123]
[1673636075550,1.671983,19340.0,19339.0,0.123]
[1673636075800,2.03972763,19340.0,19339.0,0.123]
[1673636076317,2.21652763,19340.0,19339.0,0.123]
[1673636076553,2.70493095,19340.0,19339.0,0.123]
[1673636076808,2.21652763,19340.0,19339.0,0.123]
[1673636077302,3.28316033,19340.0,19335.0,0.00019]
[1673636077552,0.177,19336.0,19335.0,0.00019]
[1673636077804,1.20006326,19336.0,19335.0,0.00019]
[1673636078047,1.20006326,19336.0,19333.0,0.98780743]
[1673636078048,3.72952333,19336.0,19333.0,0.98780743]
[1673636078308,0.79169933,19335.0,19333.0,0.98780743]
[1673636078572,1.976024,19334.0,19333.0,0.98780743]
[1673636078820,1.876024,19334.0,19333.0,0.98780743]
[1673636079068,0.324355,19334.0,19333.0,1.07590743]
[1673636079335,0.517199,19335.0,19334.0,0.53830068]
[1673636079808,0.001,19334.0,19333.0,1.09590743]
[1673636080062,1.42179084,19334.0,19333.0,0.98780743]
[1673636080338,1.484021,19334.0,19333.0,0.98780743]
[1673636080574,1.784021,19334.0,19333.0,0.98780743]
[1673636080823,1.790021,19334.0,19333.0,1.10080743]
[1673636081072,1.790021,19334.0,19333.0,0.98780743]
[1673636081383,2.0207452,19334.0,19333.0,0.98780743]
[1673636081586,1.7207452,19334.0,19333.0,0.98780743]
[1673636082079,1.496021,19334.0,19333.0,1.10080743]
[1673636082579,0.012,19334.0,19333.0,1.10080743]
[1673636082820,0.012,19334.0,19333.0,1.84487435]
[1673636083320,0.012,19334.0,19333.0,1.94487435]
[1673636083576,0.012,19334.0,19333.0,1.94499469]
[1673636083823,0.012,19334.0,19333.0,1.18890743]
[1673636084073,0.21800548,19334.0,19333.0,1.10080743]
[1673636084572,0.21800548,19334.0,19333.0,1.10092777]
[1673636084825,0.21800548,19334.0,19333.0,1.20092777]
[1673636085076,0.012,19334.0,19333.0,2.5359934]
[1673636085334,0.012,19334.0,19333.0,2.10186177]
[1673636085576,0.012,19334.0,19333.0,3.24334703]
[1673636085832,0.007,19334.0,19333.0,3.24334703]
[1673636086329,0.007,19334.0,19333.0,2.61743982]
[1673636086578,0.21730494,19334.0,19333.0,2.61743982]
[1673636086835,0.21730494,19334.0,19333.0,1.18803548]
[1673636086836,0.22169562,19334.0,19333.0,1.18803548]
[1673636088349,0.29558658,19334.0,19333.0,1.09913548]
[1673636088591,0.54605062,19334.0,19333.0,1.09913548]
[1673636089393,0.631355,19334.0,19333.0,1.09913548]
[1673636089630,1.665801,19334.0,19333.0,1.09913548]
[1673636090142,1.674301,19334.0,19333.0,1.09913548]
[1673636090386,1.774301,19334.0,19333.0,1.09913548]
[1673636090632,0.50146633,19334.0,19333.0,1.09913548]
[1673636090896,0.49446633,19334.0,19333.0,0.98613548]
[1673636091385,0.79446633,19334.0,19333.0,0.98613548]
[1673636091638,1.45285566,19334.0,19333.0,0.98613548]
[1673636091883,1.35568933,19334.0,19333.0,0.98913548]
[1673636092131,1.05568933,19334.0,19333.0,0.98913548]
[1673636092646,0.368355,19334.0,19333.0,0.98935873]
[1673636092893,0.044,19334.0,19333.0,0.98913548]
[1673636093973,0.044,19334.0,19333.0,1.66310674]
[1673636094206,0.517216,19335.0,19333.0,1.07503548]
[1673636094207,1.19394521,19335.0,19333.0,1.07503548]
[1673636094473,0.17668146,19334.0,19333.0,1.08803548]
[1673636094713,0.17668146,19334.0,19333.0,1.07525873]
[1673636094969,0.71883419,19335.0,19333.0,1.07525873]
[1673636095212,0.17410263,19334.0,19333.0,1.07503548]
[1673636095463,0.69132563,19334.0,19333.0,1.07503548]
[1673636095703,0.69132563,19334.0,19333.0,0.98613548]
[1673636095952,0.69532563,19334.0,19333.0,1.12113548]
[1673636096443,1.21254863,19334.0,19333.0,1.12113548]
[1673636097911,1.72254084,19334.0,19333.0,1.12113548]
[1673636098163,1.84843821,19334.0,19333.0,1.12113548]
[1673636098414,2.15874315,19334.0,19333.0,1.12113548]
[1673636098682,1.94843821,19334.0,19333.0,1.12113548]
[1673636099703,3.4802191,19334.0,19333.0,1.12113548]
[1673636100447,4.0064518,19334.0,19333.0,1.12113548]
[1673636100707,4.0064518,19334.0,19333.0,0.07931327]
[1673636100952,4.0064518,19334.0,19331.0,0.00775369]
[1673636100953,0.1,19333.0,19331.0,0.00775369]
[1673636101209,2.216275,19332.0,19331.0,0.00775369]
[1673636101708,2.516275,19332.0,19331.0,0.00775369]
[1673636101955,3.55120117,19332.0,19331.0,0.00775369]
[1673636102500,3.66120117,19332.0,19331.0,0.01475369]
[1673636103762,3.23598117,19332.0,19331.0,0.01475369]
[1673636104011,2.201055,19332.0,19331.0,0.01475369]
[1673636104258,2.81863292,19332.0,19331.0,0.01475369]
[1673636104502,2.71863292,19332.0,19331.0,0.01475369]
[1673636105707,1.683778,19332.0,19331.0,0.01475369]
[1673636105971,2.71861478,19332.0,19331.0,0.01475369]
[1673636106219,1.683778,19332.0,19331.0,0.01475369]
[1673636106710,2.71860179,19332.0,19331.0,0.01475369]
[1673636106959,2.90860179,19332.0,19331.0,0.01575369]
[1673636107212,2.99960179,19332.0,19331.0,0.01575369]
[1673636107714,2.69960179,19332.0,19331.0,0.01575369]
[1673636107975,1.147501,19332.0,19331.0,0.14027369]
[1673636108230,1.147501,19332.0,19331.0,0.01575369]
[1673636108231,0.608277,19332.0,19331.0,0.01575369]
[1673636108725,1.2381085,19332.0,19331.0,0.01575369]
[1673636108978,2.59728731,19332.0,19331.0,0.01575369]
[1673636109223,2.48473281,19332.0,19331.0,0.01575369]
[1673636109706,3.30200981,19332.0,19331.0,0.01575369]
[1673636110214,3.00200981,19332.0,19331.0,0.01575369]